[Event "FIDE WCCC Open-10 2024"]
[Site "Montesilvano"]
[Date "2024.11.18"]
[Round "2.24"]
[White "Li, Weilong"]
[Black "Larion, Iustin"]
[Result "0-1"]
[ECO "B12"]
[WhiteElo "1735"]
[BlackElo "1925"]
[PlyCount "70"]
[EventDate "2024.11.18"]
[EventType "swiss"]
[EventCountry "ITA"]
[TimeControl "5400+30"]

1. e4 {[%emt 0:00:04]} c6 {[%emt 0:00:24]} 2. d4 {[%emt 0:00:30]} d5 {[%emt 0:00:08]} 3. e5 {[%emt 0:00:36]} c5 {[%emt 0:00:11]} 4. dxc5 {[%emt 0:00:21]} e6 {[%emt 0:00:10]} 5. Nf3 {[%emt 0:00:22]} Bxc5 {[%emt 0:00:13]} 6. Bd3 {[%emt 0:00:05]} Ne7 {[%emt 0:00:08]} 7. O-O {[%emt 0:00:06]} Ng6 {[%emt 0:00:53]} 8. a3 {[%emt 0:05:15]} O-O {[%emt 0:00:15]} 9. b4 {[%emt 0:02:18]} Be7 {[%emt 0:00:22]} 10. g3 {[%emt 0:04:34]} f6 {[%emt 0:13:00]} 11. Bb2 {[%emt 0:05:56]} Nxe5 {[%emt 0:02:07]} 12. Nxe5 {[%emt 0:00:08]} fxe5 {[%emt 0:00:10]} 13. Bxe5 {[%emt 0:00:11]} g6 {[%emt 0:16:04]} 14. c4 {[%emt 0:17:27]} Nc6 {[%emt 0:05:45]} 15. Bb2 {[%emt 0:00:09]} Bf6 {[%emt 0:01:34]} 16. Ra2 {[%emt 0:04:33]} Bxb2 {[%emt 0:02:31]} 17. Rxb2 {[%emt 0:00:06]} Qf6 {[%emt 0:01:40]} 18. Re2 {[%emt 0:02:53]} dxc4 {[%emt 0:07:49]} 19. Bxc4 {[%emt 0:00:08]} b5 {[%emt 0:00:55]} 20. Ba2 {[%emt 0:00:52]} Nd4 {[%emt 0:01:48]} 21. Re4 {[%emt 0:01:46]} Nf3+ {[%emt 0:07:30]} 22. Kh1 {[%emt 0:00:09]} Bb7 {[%emt 0:02:09]} 23. Rf4 {[%emt 0:00:09]} Qe5 {[%emt 0:02:06]} 24. Qd7 {[%emt 0:01:55]} Rxf4 {[%emt 0:07:22]} 25. Qxb7 {[%emt 0:01:08]} Raf8 {[%emt 0:01:48]} 26. Qd7 {[%emt 0:01:37]} R4f6 {[%emt 0:00:28]} 27. Qd1 {[%emt 0:00:08]} Qh5 {[%emt 0:02:12]} 28. h4 {[%emt 0:00:14]} Qg4 {[%emt 0:00:11]} 29. Kg2 {[%emt 0:11:24]} Nxh4+ {[%emt 0:00:16]} 30. Kg1 {[%emt 0:08:30]} Nf3+ {[%emt 0:00:17]} 31. Kg2 {[%emt 0:11:59]} Qe4 {[%emt 0:00:19]} 32. Kh3 {[%emt 0:07:48]} Rf5 {[%emt 0:00:38]} 33. g4 {[%emt 0:02:42]} Rh5+ {[%emt 0:00:28]} 34. gxh5 {[%emt 0:01:33]} Qh4+ {[%emt 0:00:19]} 35. Kg2 {[%emt 0:01:50]} Qh2# {[%emt 0:00:10]} 0-1

[Event "FIDE WCCC Open-10 2024"]
[Site "Montesilvano"]
[Date "2024.11.18"]
[Round "2.25"]
[White "Ejsymont, Eryk"]
[Black "Vardanyan, Armen Art."]
[Result "0-1"]
[ECO "B12"]
[WhiteElo "1910"]
[BlackElo "1735"]
[PlyCount "128"]
[EventDate "2024.11.18"]
[EventType "swiss"]
[EventCountry "ITA"]
[TimeControl "5400+30"]

1. e4 {[%emt 0:00:03]} c6 {[%emt 0:00:09]} 2. d4 {[%emt 0:00:10]} d5 {[%emt 0:00:08]} 3. e5 {[%emt 0:00:06]} Bf5 {[%emt 0:00:10]} 4. h4 {[%emt 0:00:10]} h5 {[%emt 0:00:16]} 5. Bd3 {[%emt 0:00:14]} Bxd3 {[%emt 0:00:12]} 6. Qxd3 {[%emt 0:00:09]} e6 {[%emt 0:00:20]} 7. Bg5 {[%emt 0:00:13]} Qb6 {[%emt 0:00:20]} 8. Nd2 {[%emt 0:01:25]} Ne7 {[%emt 0:00:16]} 9. Ngf3 {[%emt 0:02:20]} Nf5 {[%emt 0:01:50]} 10. O-O {[%emt 0:02:04]} c5 {[%emt 0:00:10]} 11. c4 {[%emt 0:06:13]} Qa6 {[%emt 0:01:04]} 12. Qb3 {[%emt 0:07:10]} dxc4 {[%emt 0:02:02]} 13. Nxc4 {[%emt 0:01:40]} cxd4 {[%emt 0:00:47]} 14. a4 {[%emt 0:15:14]} Bc5 {[%emt 0:02:08]} 15. Nfd2 {[%emt 0:02:27]} O-O {[%emt 0:03:32]} 16. Ne4 {[%emt 0:05:23]} Qc6 {[%emt 0:03:03]} 17. Qf3 {[%emt 0:04:10]} Bb4 {[%emt 0:03:29]} 18. Rac1 {[%emt 0:01:45]} Qd5 {[%emt 0:03:02]} 19. g4 {[%emt 0:03:36]} hxg4 {[%emt 1:17:02]} 20. Qxg4 {[%emt 0:00:12]} Nd7 {[%emt 0:00:00]} 21. Bf6 {[%emt 0:02:53]} Be7 {[%emt 0:00:00]} 22. Rfd1 {[%emt 0:14:32]} Bxf6 {[%emt 0:00:00]} 23. exf6 {[%emt 0:04:13]} g6 {[%emt 0:00:00]} 24. h5 {[%emt 0:13:26]} Nh6 {[%emt 0:00:00]} 25. Qh4 {[%emt 0:00:34]} Qxh5 {[%emt 0:00:00]} 26. Qxh5 {[%emt 0:00:06]} gxh5 {[%emt 0:00:00]} 27. Rxd4 {[%emt 0:00:15]} Nb6 {[%emt 0:00:00]} 28. Nxb6 {[%emt 0:00:52]} axb6 {[%emt 0:00:00]} 29. Ng3 {[%emt 0:01:39]} Kh7 {[%emt 0:00:00]} 30. Rh4 {[%emt 0:03:12]} Rac8 {[%emt 0:00:00]} 31. Re1 {[%emt 0:02:06]} Rc5 {[%emt 0:00:00]} 32. b4 {[%emt 0:00:30]} Rg5 {[%emt 0:00:00]} 33. Rd1 {[%emt 0:04:34]} Kg6 {[%emt 0:00:00]} 34. Kh2 {[%emt 0:00:55]} Nf5 {[%emt 0:00:00]} 35. Rc4 {[%emt 0:00:49]} b5 {[%emt 0:00:00]} 36. Rc7 {[%emt 0:01:52]} Nxg3 {[%emt 0:00:00]} 37. fxg3 {[%emt 0:00:09]} bxa4 {[%emt 0:00:00]} 38. Rxb7 {[%emt 0:00:10]} Rd5 {[%emt 0:00:00]} 39. Rxd5 {[%emt 0:01:12]} exd5 {[%emt 0:00:00]} 40. Ra7 {[%emt 0:00:02]} Kxf6 {[%emt 0:00:00]} 41. Rxa4 {[%emt 0:00:04]} Rb8 {[%emt 0:00:00]} 42. Ra5 {[%emt 0:00:37]} Ke5 {[%emt 0:00:00]} 43. Ra7 {[%emt 0:00:14]} f5 {[%emt 0:00:00]} 44. Re7+ {[%emt 0:00:05]} Kd6 {[%emt 0:00:00]} 45. Rh7 {[%emt 0:00:55]} Rxb4 {[%emt 0:00:00]} 46. Rxh5 {[%emt 0:00:20]} Ke5 {[%emt 0:00:00]} 47. Rh8 {[%emt 0:00:27]} Rb2+ {[%emt 0:00:00]} 48. Kh3 {[%emt 0:00:15]} Ke4 {[%emt 0:00:00]} 49. Rh4+ {[%emt 0:00:15]} Ke3 {[%emt 0:00:00]} 50. Rh8 {[%emt 0:01:17]} d4 {[%emt 0:00:00]} 51. Re8+ {[%emt 0:00:18]} Kd3 {[%emt 0:00:00]} 52. Ra8 {[%emt 0:01:15]} Rb5 {[%emt 0:00:00]} 53. Kg2 {[%emt 0:00:41]} Ke4 {[%emt 0:00:00]} 54. Re8+ {[%emt 0:00:37]} Re5 {[%emt 0:00:00]} 55. Rd8 {[%emt 0:00:25]} d3 {[%emt 0:00:00]} 56. Kf2 {[%emt 0:00:26]} Rd5 {[%emt 0:00:00]} 57. Re8+ {[%emt 0:00:31]} Kd4 {[%emt 0:00:00]} 58. Rc8 {[%emt 0:01:06]} Rc5 {[%emt 0:00:00]} 59. Rd8+ {[%emt 0:00:32]} Kc3 {[%emt 0:00:00]} 60. Ke1 {[%emt 0:00:52]} Kc2 {[%emt 0:00:00]} 61. Kf2 {[%emt 0:00:31]} d2 {[%emt 0:00:00]} 62. Ke3 {[%emt 0:00:29]} d1=Q {[%emt 0:00:00]} 63. Rxd1 {[%emt 0:00:03]} Kxd1 {[%emt 0:00:00]} 64. Kf2 {[%emt 0:00:02]} Rc3 {[%emt 0:00:00]} 0-1

[Event "FIDE WCCC Open-10 2024"]
[Site "Montesilvano"]
[Date "2024.11.18"]
[Round "2.25"]
[White "Grimm, Jakob"]
[Black "Lin, Julian M"]
[Result "1-0"]
[ECO "C50"]
[WhiteElo "1646"]
[BlackElo "2017"]
[PlyCount "60"]
[EventDate "2024.11.18"]
[EventType "swiss"]
[EventCountry "ITA"]
[TimeControl "5400+30"]

1. e4 {[%emt 0:00:03]} e5 {[%emt 0:00:02]} 2. Nf3 {[%emt 0:00:05]} Nc6 {[%emt 0:00:07]} 3. Bc4 {[%emt 0:00:10]} b6 {[%emt 0:00:32]} 4. d3 {[%emt 0:00:48]} Nf6 {[%emt 0:00:45]} 5. Nc3 {[%emt 0:00:16]} d6 {[%emt 0:00:23]} 6. Ng5 {[%emt 0:01:17]} Bg4 {[%emt 0:00:18]} 7. Bxf7+ {[%emt 0:01:16]} Kd7 {[%emt 0:00:43]} 8. f3 {[%emt 0:01:42]} h6 {[%emt 0:00:52]} 9. fxg4 {[%emt 0:02:17]} hxg5 {[%emt 0:00:30]} 10. Nd5 {[%emt 0:01:26]} Nxd5 {[%emt 0:00:39]} 11. Bxd5 {[%emt 0:03:06]} Nb4 {[%emt 0:00:26]} 12. Bxa8 {[%emt 0:00:10]} Qxa8 {[%emt 0:00:10]} 13. c3 {[%emt 0:01:33]} Nd5 {[%emt 0:01:09]} 14. exd5 {[%emt 0:00:03]} Qxd5 {[%emt 0:00:34]} 15. Qf3 {[%emt 0:00:03]} Qe6 {[%emt 0:01:12]} 16. Qf5 {[%emt 0:00:02]} Be7 {[%emt 0:01:13]} 17. Qxe6+ {[%emt 0:00:08]} Kxe6 {[%emt 0:00:14]} 18. Be3 {[%emt 0:00:08]} c5 {[%emt 0:01:50]} 19. O-O-O {[%emt 0:00:07]} d5 {[%emt 0:00:45]} 20. d4 {[%emt 0:00:01]} e4 {[%emt 0:00:32]} 21. dxc5 {[%emt 0:00:10]} bxc5 {[%emt 0:00:15]} 22. Rd2 {[%emt 0:00:22]} d4 {[%emt 0:01:41]} 23. cxd4 {[%emt 0:00:13]} cxd4 {[%emt 0:00:18]} 24. Bxd4 {[%emt 0:03:35]} Bb4 {[%emt 0:00:31]} 25. Bc3 {[%emt 0:00:15]} Bd6 {[%emt 0:01:00]} 26. Bxg7 {[%emt 0:00:37]} Rxh2 {[%emt 0:00:16]} 27. Rxd6+ {[%emt 0:00:11]} Kxd6 {[%emt 1:27:03]} 28. Rxh2 {[%emt 0:00:07]} Kd5 {[%emt 0:00:00]} 29. Kd2 {[%emt 0:00:06]} Kc4 {[%emt 0:00:00]} 30. Rh5 {[%emt 0:00:18]} Kd5 {[%emt 0:01:30]} 1-0

[Event "FIDE WCCC Open-10 2024"]
[Site "Montesilvano"]
[Date "2024.11.18"]
[Round "2.26"]
[White "Babeikin, Kiryl"]
[Black "Mutyalapati, Modith Aaroh"]
[Result "1-0"]
[ECO "C06"]
[WhiteElo "1721"]
[BlackElo "1893"]
[PlyCount "111"]
[EventDate "2024.11.18"]
[EventType "swiss"]
[EventCountry "ITA"]
[TimeControl "5400+30"]

1. e4 {[%emt 0:00:01]} e6 {[%emt 0:00:05]} 2. d4 {[%emt 0:00:05]} d5 {[%emt 0:00:05]} 3. Nd2 {[%emt 0:00:13]} Nf6 {[%emt 0:00:11]} 4. e5 {[%emt 0:00:08]} Nfd7 {[%emt 0:00:06]} 5. Bd3 {[%emt 0:00:09]} c5 {[%emt 0:00:03]} 6. c3 {[%emt 0:00:08]} Nc6 {[%emt 0:00:03]} 7. Ne2 {[%emt 0:00:13]} cxd4 {[%emt 0:00:06]} 8. cxd4 {[%emt 0:00:07]} f6 {[%emt 0:00:06]} 9. exf6 {[%emt 0:00:06]} Nxf6 {[%emt 0:00:04]} 10. O-O {[%emt 0:00:16]} Bd6 {[%emt 0:00:04]} 11. Nf3 {[%emt 0:00:13]} O-O {[%emt 0:00:08]} 12. Bf4 {[%emt 0:00:28]} Bxf4 {[%emt 0:00:33]} 13. Nxf4 {[%emt 0:00:08]} Qd6 {[%emt 0:00:36]} 14. Ne2 {[%emt 0:02:37]} Bd7 {[%emt 0:02:07]} 15. Ng3 {[%emt 0:02:31]} Be8 {[%emt 0:00:18]} 16. Re1 {[%emt 0:02:15]} h6 {[%emt 0:01:02]} 17. Qe2 {[%emt 0:15:29]} Bf7 {[%emt 0:02:00]} 18. Qe3 {[%emt 0:02:36]} Ng4 {[%emt 0:05:24]} 19. Qe2 {[%emt 0:00:07]} Qf4 {[%emt 0:03:09]} 20. h3 {[%emt 0:12:34]} Nf6 {[%emt 0:00:13]} 21. Rad1 {[%emt 0:03:56]} Rae8 {[%emt 0:05:16]} 22. Bb1 {[%emt 0:04:18]} Bh5 {[%emt 0:07:12]} 23. Nxh5 {[%emt 0:01:40]} Nxh5 {[%emt 0:00:14]} 24. Bg6 {[%emt 0:00:05]} Nf6 {[%emt 0:00:11]} 25. Bxe8 {[%emt 0:00:08]} Rxe8 {[%emt 0:00:13]} 26. Qe3 {[%emt 0:00:51]} Qd6 {[%emt 0:00:01]} 27. Ne5 {[%emt 0:01:08]} Ne7 {[%emt 0:00:20]} 28. Ng4 {[%emt 0:04:59]} Ne4 {[%emt 0:00:39]} 29. f3 {[%emt 0:05:16]} Nf5 {[%emt 0:00:19]} 30. Qa3 {[%emt 0:00:04]} Qxa3 {[%emt 0:00:04]} 31. bxa3 {[%emt 0:00:06]} Nc3 {[%emt 0:00:02]} 32. Rd3 {[%emt 0:00:53]} Nb5 {[%emt 0:00:06]} 33. Ne3 {[%emt 0:02:22]} Nxe3 {[%emt 0:00:13]} 34. Rexe3 {[%emt 0:00:06]} Kf7 {[%emt 0:00:03]} 35. a4 {[%emt 0:01:19]} Nd6 {[%emt 0:00:01]} 36. Rb3 {[%emt 0:01:48]} b6 {[%emt 0:00:04]} 37. Rbc3 {[%emt 0:03:46]} Nc4 {[%emt 0:00:06]} 38. Re1 {[%emt 0:00:08]} Ke7 {[%emt 0:00:32]} 39. f4 {[%emt 0:00:48]} Rf8 {[%emt 0:00:54]} 40. Rg3 {[%emt 0:03:32]} Rxf4 {[%emt 0:02:59]} 41. Rxg7+ {[%emt 0:00:04]} Kf6 {[%emt 0:00:04]} 42. Rh7 {[%emt 0:00:25]} Rh4 {[%emt 0:00:49]} 43. Kh2 {[%emt 0:02:52]} Nd2 {[%emt 0:02:41]} 44. Re2 {[%emt 0:03:44]} Nf1+ {[%emt 0:01:15]} 45. Kg1 {[%emt 0:00:07]} Ng3 {[%emt 0:00:02]} 46. Rf2+ {[%emt 0:01:58]} Nf5 {[%emt 0:02:52]} 47. g4 {[%emt 0:03:01]} Kg6 {[%emt 0:00:03]} 48. Rd7 {[%emt 0:03:23]} Ne3 {[%emt 0:01:28]} 49. Rf3 {[%emt 0:00:10]} Nxg4 {[%emt 0:00:27]} 50. Rg3 {[%emt 0:02:39]} Kf5 {[%emt 0:00:20]} 51. hxg4+ {[%emt 0:00:05]} Kf4 {[%emt 0:01:14]} 52. Kg2 {[%emt 0:00:06]} Rxg4 {[%emt 0:00:06]} 53. Rxg4+ {[%emt 0:00:05]} Kxg4 {[%emt 0:00:04]} 54. Rxa7 {[%emt 0:00:07]} Kf4 {[%emt 0:00:02]} 55. Rb7 {[%emt 0:00:10]} Ke4 {[%emt 0:00:04]} 56. Rxb6 {[%emt 0:00:06]} 1-0

[Event "FIDE WCCC Open-10 2024"]
[Site "Montesilvano"]
[Date "2024.11.18"]
[Round "2.27"]
[White "Nguyen Quang Anh"]
[Black "Kais, Kristofer"]
[Result "1-0"]
[ECO "E20"]
[WhiteElo "1889"]
[BlackElo "1723"]
[PlyCount "73"]
[EventDate "2024.11.18"]
[EventType "swiss"]
[EventCountry "ITA"]
[TimeControl "5400+30"]

1. d4 {[%emt 0:00:04]} Nf6 {[%emt 0:00:16]} 2. c4 {[%emt 0:00:51]} e6 {[%emt 0:00:22]} 3. Nc3 {[%emt 0:00:35]} Bb4 {[%emt 0:00:19]} 4. f3 {[%emt 0:00:48]} d5 {[%emt 0:02:06]} 5. a3 {[%emt 0:01:01]} Be7 {[%emt 0:01:31]} 6. e4 {[%emt 0:01:54]} dxe4 {[%emt 0:01:48]} 7. fxe4 {[%emt 0:00:18]} c5 {[%emt 0:01:39]} 8. d5 {[%emt 0:03:19]} exd5 {[%emt 0:01:38]} 9. cxd5 {[%emt 0:02:24]} Bg4 {[%emt 0:06:30]} 10. Be2 {[%emt 0:06:01]} Bxe2 {[%emt 0:03:13]} 11. Qxe2 {[%emt 0:00:28]} O-O {[%emt 0:01:54]} 12. Bf4 {[%emt 0:03:56]} Re8 {[%emt 0:03:33]} 13. Nf3 {[%emt 0:06:37]} Nxe4 {[%emt 0:11:55]} 14. Nxe4 {[%emt 0:01:45]} f5 {[%emt 0:03:24]} 15. Ne5 {[%emt 0:04:03]} Qxd5 {[%emt 0:09:59]} 16. Nc3 {[%emt 0:05:41]} Bh4+ {[%emt 0:04:11]} 17. g3 {[%emt 0:21:14]} Qxh1+ {[%emt 0:03:38]} 18. Kd2 {[%emt 0:01:11]} Rxe5 {[%emt 0:14:52]} 19. Qc4+ {[%emt 0:03:20]} Rd5+ {[%emt 0:00:56]} 20. Nxd5 {[%emt 0:00:16]} Qg2+ {[%emt 0:04:28]} 21. Kc3 {[%emt 0:02:58]} Qf3+ {[%emt 0:03:32]} 22. Ne3+ {[%emt 0:00:23]} Kh8 {[%emt 0:00:17]} 23. gxh4 {[%emt 0:00:36]} Nc6 {[%emt 0:02:23]} 24. Rf1 {[%emt 0:01:40]} Qh5 {[%emt 0:02:24]} 25. Bg3 {[%emt 0:04:02]} Nd4 {[%emt 0:04:22]} 26. Qxc5 {[%emt 0:03:52]} Qe2 {[%emt 0:06:19]} 27. Qxd4 {[%emt 0:00:58]} Rc8+ {[%emt 0:02:09]} 28. Kb3 {[%emt 0:00:30]} Qb5+ {[%emt 0:01:56]} 29. Ka2 {[%emt 0:00:15]} h6 {[%emt 0:02:13]} 30. Rxf5 {[%emt 0:01:25]} Qe8 {[%emt 0:00:56]} 31. Re5 {[%emt 0:01:37]} Qf7+ {[%emt 0:00:46]} 32. Qd5 {[%emt 0:00:15]} Qf8 {[%emt 0:00:30]} 33. Rf5 {[%emt 0:01:10]} Qe7 {[%emt 0:00:30]} 34. Be5 {[%emt 0:00:12]} Re8 {[%emt 0:00:30]} 35. Rf7 {[%emt 0:00:53]} Qxe5 {[%emt 0:00:30]} 36. Rf8+ {[%emt 0:00:07]} Kh7 {[%emt 0:00:30]} 37. Qg8+ {[%emt 0:00:09]} 1-0

[Event "FIDE WCCC Open-10 2024"]
[Site "Montesilvano"]
[Date "2024.11.18"]
[Round "2.28"]
[White "Mrozowski, Nikodem"]
[Black "Mirzhanov, Arlan"]
[Result "0-1"]
[ECO "B90"]
[WhiteElo "1874"]
[BlackElo "1721"]
[PlyCount "112"]
[EventDate "2024.11.18"]
[EventType "swiss"]
[EventCountry "ITA"]
[TimeControl "5400+30"]

1. e4 {[%emt 0:00:09]} c5 {[%emt 0:00:11]} 2. Nf3 {[%emt 0:00:06]} d6 {[%emt 0:00:07]} 3. d4 {[%emt 0:00:24]} cxd4 {[%emt 0:01:18]} 4. Nxd4 {[%emt 0:00:05]} Nf6 {[%emt 0:00:15]} 5. Nc3 {[%emt 0:00:22]} a6 {[%emt 0:00:40]} 6. f3 {[%emt 0:00:12]} e5 {[%emt 0:00:08]} 7. Nb3 {[%emt 0:00:05]} Be7 {[%emt 0:00:05]} 8. Be3 {[%emt 0:00:14]} Be6 {[%emt 0:00:05]} 9. Qd2 {[%emt 0:00:08]} h5 {[%emt 0:00:42]} 10. O-O-O {[%emt 0:00:09]} Nbd7 {[%emt 0:00:36]} 11. Kb1 {[%emt 0:01:29]} Qc7 {[%emt 0:05:36]} 12. Bg5 {[%emt 0:04:23]} Rc8 {[%emt 0:02:25]} 13. f4 {[%emt 0:04:40]} b5 {[%emt 0:03:43]} 14. a3 {[%emt 0:04:45]} Nb6 {[%emt 0:10:24]} 15. f5 {[%emt 0:02:41]} Bd7 {[%emt 0:05:06]} 16. Na5 {[%emt 0:07:46]} Na4 {[%emt 0:12:45]} 17. Bxf6 {[%emt 0:04:56]} Nxc3+ {[%emt 0:06:02]} 18. Qxc3 {[%emt 0:00:06]} Qxc3 {[%emt 0:00:39]} 19. bxc3 {[%emt 0:00:06]} gxf6 {[%emt 0:00:02]} 20. Kb2 {[%emt 0:02:55]} Rb8 {[%emt 0:01:49]} 21. Nb3 {[%emt 0:05:26]} Bc6 {[%emt 0:00:55]} 22. Bd3 {[%emt 0:03:14]} Rg8 {[%emt 0:03:47]} 23. g3 {[%emt 0:02:03]} h4 {[%emt 0:04:24]} 24. gxh4 {[%emt 0:03:02]} Rh8 {[%emt 0:00:11]} 25. h5 {[%emt 0:04:13]} Rxh5 {[%emt 0:00:39]} 26. h4 {[%emt 0:03:46]} Bf8 {[%emt 0:00:34]} 27. Be2 {[%emt 0:02:38]} Rh8 {[%emt 0:00:22]} 28. Bf3 {[%emt 0:00:13]} Ke7 {[%emt 0:00:07]} 29. h5 {[%emt 0:00:52]} Bh6 {[%emt 0:00:12]} 30. Rd3 {[%emt 0:01:09]} Rhg8 {[%emt 0:03:32]} 31. Rhd1 {[%emt 0:01:01]} Rbd8 {[%emt 0:00:10]} 32. Na5 {[%emt 0:00:44]} Ba8 {[%emt 0:01:01]} 33. c4 {[%emt 0:00:31]} Rd7 {[%emt 0:03:45]} 34. cxb5 {[%emt 0:03:51]} axb5 {[%emt 0:00:45]} 35. Rb3 {[%emt 0:01:23]} Rg3 {[%emt 0:06:52]} 36. Rdd3 {[%emt 0:02:16]} d5 {[%emt 0:00:26]} 37. exd5 {[%emt 0:01:36]} Rxf3 {[%emt 0:00:32]} 38. Rxf3 {[%emt 0:00:48]} Bxd5 {[%emt 0:00:03]} 39. Rh3 {[%emt 0:01:15]} Bxb3 {[%emt 0:00:10]} 40. Kxb3 {[%emt 0:01:23]} e4 {[%emt 0:00:41]} 41. Rh4 {[%emt 0:00:54]} e3 {[%emt 0:29:14]} 42. Nc6+ {[%emt 0:00:33]} Kd6 {[%emt 0:00:00]} 43. Nd4 {[%emt 0:00:12]} Ke5 {[%emt 0:00:00]} 44. c3 {[%emt 0:00:33]} Kd5 {[%emt 0:00:00]} 45. Kb4 {[%emt 0:05:01]} Ra7 {[%emt 0:00:00]} 46. Kxb5 {[%emt 0:03:51]} Rxa3 {[%emt 0:00:00]} 47. c4+ {[%emt 0:00:15]} Ke5 {[%emt 0:00:00]} 48. c5 {[%emt 0:00:18]} Rd3 {[%emt 0:00:00]} 49. Kc4 {[%emt 0:02:51]} Rxd4+ {[%emt 0:00:00]} 50. Rxd4 {[%emt 0:00:04]} e2 {[%emt 0:00:00]} 51. Rd8 {[%emt 0:00:05]} Be3 {[%emt 0:00:00]} 52. h6 {[%emt 0:01:33]} e1=Q {[%emt 0:00:00]} 53. h7 {[%emt 0:00:06]} Qh4+ {[%emt 0:00:00]} 54. Kb5 {[%emt 0:00:12]} Qxh7 {[%emt 0:00:00]} 55. c6 {[%emt 0:00:04]} Qh1 {[%emt 0:00:00]} 56. Re8+ {[%emt 0:00:11]} Kf4 {[%emt 0:00:00]} 0-1

[Event "FIDE WCCC Open-10 2024"]
[Site "Montesilvano"]
[Date "2024.11.18"]
[Round "2.29"]
[White "Seo, Juwon"]
[Black "Zabelin, Platon"]
[Result "0-1"]
[ECO "B19"]
[WhiteElo "1721"]
[BlackElo "1870"]
[PlyCount "78"]
[EventDate "2024.11.18"]
[EventType "swiss"]
[EventCountry "ITA"]
[TimeControl "5400+30"]

1. e4 {[%emt 0:00:02]} c6 {[%emt 0:00:08]} 2. d4 {[%emt 0:00:07]} d5 {[%emt 0:00:07]} 3. Nc3 {[%emt 0:00:08]} dxe4 {[%emt 0:00:07]} 4. Nxe4 {[%emt 0:00:11]} Bf5 {[%emt 0:00:21]} 5. Ng3 {[%emt 0:00:08]} Bg6 {[%emt 0:00:13]} 6. h4 {[%emt 0:00:59]} h6 {[%emt 0:00:05]} 7. Nf3 {[%emt 0:00:08]} Nd7 {[%emt 0:00:06]} 8. h5 {[%emt 0:00:08]} Bh7 {[%emt 0:00:05]} 9. Bd3 {[%emt 0:00:11]} Bxd3 {[%emt 0:00:07]} 10. Qxd3 {[%emt 0:00:09]} e6 {[%emt 0:00:08]} 11. Bd2 {[%emt 0:00:06]} Ngf6 {[%emt 0:00:06]} 12. O-O-O {[%emt 0:00:13]} Be7 {[%emt 0:00:07]} 13. Kb1 {[%emt 0:00:11]} Qb6 {[%emt 0:00:05]} 14. Ne4 {[%emt 0:01:50]} O-O {[%emt 0:00:31]} 15. Nxf6+ {[%emt 0:01:18]} Nxf6 {[%emt 0:01:06]} 16. Qe2 {[%emt 0:02:02]} c5 {[%emt 0:02:04]} 17. Be3 {[%emt 0:16:36]} Nd5 {[%emt 0:03:29]} 18. Ka1 {[%emt 0:02:07]} Qc7 {[%emt 0:16:48]} 19. g4 {[%emt 0:03:41]} c4 {[%emt 0:06:05]} 20. c3 {[%emt 0:02:29]} b5 {[%emt 0:03:26]} 21. Qd2 {[%emt 0:24:52]} b4 {[%emt 0:10:18]} 22. g5 {[%emt 0:04:51]} b3 {[%emt 0:05:27]} 23. a3 {[%emt 0:01:11]} Qa5 {[%emt 0:00:26]} 24. gxh6 {[%emt 0:02:15]} Bxa3 {[%emt 0:00:28]} 25. bxa3 {[%emt 0:00:08]} Nxc3 {[%emt 0:00:16]} 26. Qc1 {[%emt 0:14:08]} Rfb8 {[%emt 0:04:12]} 27. Kb2 {[%emt 0:05:04]} Na4+ {[%emt 0:00:39]} 28. Kb1 {[%emt 0:01:18]} c3 {[%emt 0:01:03]} 29. Bd2 {[%emt 0:04:01]} c2+ {[%emt 0:00:29]} 30. Ka1 {[%emt 0:00:50]} Qd5 {[%emt 0:00:24]} 31. Bc3 {[%emt 0:05:20]} b2+ {[%emt 0:00:29]} 32. Bxb2 {[%emt 0:00:11]} Rxb2 {[%emt 0:00:03]} 33. Qxb2 {[%emt 0:00:29]} cxd1=Q+ {[%emt 0:00:10]} 34. Rxd1 {[%emt 0:00:12]} Nxb2 {[%emt 0:00:03]} 35. Rg1 {[%emt 0:00:19]} Qxf3 {[%emt 0:00:09]} 36. Rxg7+ {[%emt 0:00:05]} Kh8 {[%emt 0:00:03]} 37. Kxb2 {[%emt 0:00:06]} Rb8+ {[%emt 0:00:06]} 38. Ka2 {[%emt 0:00:05]} Qe2+ {[%emt 0:00:06]} 39. Ka1 {[%emt 0:00:03]} Qb2# {[%emt 0:49:55]} 0-1

[Event "FIDE WCCC Open-10 2024"]
[Site "Montesilvano"]
[Date "2024.11.18"]
[Round "2.30"]
[White "Yrysov, Timur"]
[Black "Wang, Rocky"]
[Result "0-1"]
[ECO "B21"]
[WhiteElo "1604"]
[BlackElo "1853"]
[PlyCount "50"]
[EventDate "2024.11.18"]
[EventType "swiss"]
[EventCountry "ITA"]
[TimeControl "5400+30"]

1. e4 {[%emt 0:00:20]} c5 {[%emt 0:00:16]} 2. d4 {[%emt 0:00:44]} cxd4 {[%emt 0:00:10]} 3. Qxd4 {[%emt 0:01:02]} Nc6 {[%emt 0:01:31]} 4. Qd2 {[%emt 0:01:26]} Nf6 {[%emt 0:07:15]} 5. Nc3 {[%emt 0:02:33]} e5 {[%emt 0:01:28]} 6. b3 {[%emt 0:06:49]} Bb4 {[%emt 0:03:15]} 7. Bd3 {[%emt 0:02:11]} d5 {[%emt 0:04:05]} 8. exd5 {[%emt 0:01:02]} Nxd5 {[%emt 0:00:24]} 9. Bb2 {[%emt 0:02:14]} Nd4 {[%emt 0:13:58]} 10. a3 {[%emt 0:14:45]} Bxc3 {[%emt 0:06:03]} 11. Bxc3 {[%emt 0:01:24]} Nxc3 {[%emt 0:07:05]} 12. Qxc3 {[%emt 0:02:02]} Qg5 {[%emt 0:00:13]} 13. Be4 {[%emt 0:25:13]} Bf5 {[%emt 0:02:11]} 14. Bxf5 {[%emt 0:05:50]} Qxf5 {[%emt 0:02:14]} 15. Rc1 {[%emt 0:28:33]} Rc8 {[%emt 0:02:38]} 16. Qd2 {[%emt 0:00:17]} O-O {[%emt 0:01:32]} 17. c3 {[%emt 0:01:33]} Qe4+ {[%emt 0:00:46]} 18. Qe3 {[%emt 0:00:44]} Qxg2 {[%emt 0:00:43]} 19. cxd4 {[%emt 0:00:39]} exd4 {[%emt 0:00:29]} 20. Qf3 {[%emt 0:00:34]} Rxc1+ {[%emt 0:00:12]} 21. Kd2 {[%emt 0:00:31]} Qg5+ {[%emt 0:00:18]} 22. Kd3 {[%emt 0:00:27]} Rc3+ {[%emt 0:00:30]} 23. Kxd4 {[%emt 0:00:15]} Qd2+ {[%emt 0:00:54]} 24. Ke5 {[%emt 0:00:10]} Rc5+ {[%emt 0:00:35]} 25. Ke4 {[%emt 0:00:13]} Re8# {[%emt 0:00:04]} 0-1

[Event "FIDE WCCC Open-10 2024"]
[Site "Montesilvano"]
[Date "2024.11.18"]
[Round "2.31"]
[White "Melkonyan, Davit"]
[Black "Larionov, Serghei"]
[Result "1-0"]
[ECO "C64"]
[WhiteElo "1842"]
[BlackElo "1720"]
[PlyCount "46"]
[EventDate "2024.11.18"]
[EventType "swiss"]
[EventCountry "ITA"]
[TimeControl "5400+30"]

1. e4 {[%emt 0:00:05]} e5 {[%emt 0:00:31]} 2. Nf3 {[%emt 0:00:16]} Nc6 {[%emt 0:00:07]} 3. Bb5 {[%emt 0:00:10]} a6 {[%emt 0:00:51]} 4. Ba4 {[%emt 0:00:25]} Bc5 {[%emt 0:00:10]} 5. O-O {[%emt 0:03:33]} Nge7 {[%emt 0:01:24]} 6. c3 {[%emt 0:02:30]} Ng6 {[%emt 0:01:49]} 7. d4 {[%emt 0:04:37]} Ba7 {[%emt 0:04:01]} 8. Re1 {[%emt 0:09:51]} O-O {[%emt 0:05:01]} 9. Bb3 {[%emt 0:08:08]} d6 {[%emt 0:08:44]} 10. Bg5 {[%emt 0:08:25]} Qe8 {[%emt 0:04:33]} 11. h3 {[%emt 0:04:03]} Kh8 {[%emt 1:08:49]} 12. g4 {[%emt 0:06:57]} h6 {[%emt 0:00:00]} 13. Be3 {[%emt 0:02:33]} Qd8 {[%emt 0:00:00]} 14. Nbd2 {[%emt 0:01:39]} Nf4 {[%emt 0:00:00]} 15. Bxf4 {[%emt 0:00:58]} exf4 {[%emt 0:00:00]} 16. Nh2 {[%emt 0:01:35]} h5 {[%emt 0:00:00]} 17. Qf3 {[%emt 0:01:20]} Qg5 {[%emt 0:00:00]} 18. Qg2 {[%emt 0:04:09]} hxg4 {[%emt 0:00:00]} 19. hxg4 {[%emt 0:02:19]} g6 {[%emt 0:00:00]} 20. Ndf3 {[%emt 0:00:42]} Qe7 {[%emt 0:00:00]} 21. g5 {[%emt 0:01:05]} Qd7 {[%emt 0:00:00]} 22. e5 {[%emt 0:05:43]} Qf5 {[%emt 0:00:00]} 23. Nh4 {[%emt 0:30:57]} Qh3 {[%emt 0:06:00]} 1-0